bitfinex-derivatives/quotes_SOLF0:USTF0_20250712
["timestamp","ask_amount","ask_price","bid_price","bid_amount"]
[1752292179949,0.03877867,163.03,163.02,9.6714]
[1752292181451,0.03877867,163.03,163.02,3.54]
[1752292181746,3.43877867,163.03,163.02,3.54]
[1752292182348,3.43877867,163.03,163.01,3.54]
[1752292183145,3.43877867,163.03,163.02,3.54]
[1752292183841,3.43877867,163.03,163.0,6.17613018]
[1752292184046,3.4,163.02,163.0,3.58413018]
[1752292184550,3.4,163.02,163.0,0.04413018]
[1752292185346,3.28,163.02,163.0,0.04413018]
[1752292186148,6.1318,163.01,163.0,0.04413018]
[1752292186344,9.4118,163.01,163.0,0.04413018]
[1752292186951,3.28,163.01,163.0,3.61413018]
[1752292191857,3.28,163.02,163.0,3.61413018]
[1752292192958,3.28,163.02,163.0,9.74633018]
[1752292193154,3.28,163.02,163.01,3.57]
[1752292195260,3.28,163.02,163.01,9.7018]
[1752292195461,3.31877867,163.03,163.02,3.57]
[1752292196260,3.31877867,163.03,163.01,3.57]
[1752292197161,3.31877867,163.03,163.02,3.57]
[1752292200362,9.44977867,163.03,163.02,3.57]
[1752292200663,3.31877867,163.03,163.02,3.57]
[1752292202464,0.03877867,163.03,163.02,3.57]
[1752292203154,0.03877867,163.03,163.02,9.7014]
[1752292204161,3.31877867,163.03,163.01,3.57]
[1752292204366,3.31877867,163.03,163.0,0.04413018]
[1752292204367,3.31877867,163.03,163.0,3.61413018]
[1752292204662,3.28,163.02,163.0,3.61413018]
[1752292204864,3.28,163.02,163.01,3.57]
[1752292206165,9.4115,163.02,163.0,0.04413018]
[1752292206458,3.28,163.01,163.0,3.61413018]
[1752292215875,9.4918,163.01,163.0,0.04413018]
[1752292217171,3.36,163.01,163.0,0.04413018]
[1752292218773,3.36,163.01,163.0,3.64413018]
[1752292219877,3.36,163.02,163.0,3.64413018]
[1752292220471,3.36,163.01,163.0,3.64413018]
[1752292222179,3.36,163.02,163.0,9.77623018]
[1752292222478,3.36,163.01,163.0,6.17623018]
[1752292222976,3.36,163.01,163.0,9.77623018]
[1752292223173,3.36,163.01,163.0,3.64413018]
[1752292226481,3.36,163.01,163.0,9.77633018]
[1752292227181,3.36,163.01,163.0,3.64413018]
[1752292230880,0.03877867,163.03,163.0,3.64413018]
[1752292231075,3.36,163.07,163.03,3.6]
[1752292231279,3.36,163.07,163.04,3.6]
[1752292232077,3.36,163.07,163.06,3.6]
[1752292233486,6.1286,163.1,163.07,3.6]
[1752292233780,18.88068536,163.15,163.08,3.6]
[1752292233979,3.36,163.14,163.07,3.78990075]
[1752292234186,3.36,163.12,163.08,3.6]
[1752292234380,3.36,163.12,163.09,0.04207409]
[1752292234686,3.36,163.12,163.1,3.6]
[1752292238688,3.36,163.13,163.1,3.6]
[1752292239092,3.36,163.13,163.11,3.6]
[1752292239384,3.36,163.14,163.11,3.6]
[1752292239589,3.36,163.13,163.11,3.6]
[1752292242893,3.36,163.14,163.11,9.7279]
[1752292243095,3.36,163.14,163.09,3.83197484]
[1752292243096,184.8,163.15,163.12,3.6]
[1752292243697,184.8,163.15,163.12,6.1276]
[1752292243896,3.36,163.17,163.13,3.6]
[1752292244293,3.36,163.17,163.13,6.1271]
[1752292244598,3.36,163.17,163.14,3.6]
[1752292245192,3.48,163.16,163.14,3.6]
[1752292246298,3.48,163.15,163.14,3.35]
[1752292246493,3.48,163.15,163.13,0.04053707]
[1752292246494,7.26990075,163.15,163.13,0.04053707]
[1752292246694,3.48,163.14,163.1,3.35]
[1752292246899,6.128,163.11,163.1,3.35]
[1752292247100,9.608,163.11,163.1,3.35]
[1752292247499,3.48,163.11,163.1,3.35]
[1752292249998,9.608,163.11,163.1,3.35]
[1752292250203,9.608,163.11,162.98,529.82]
[1752292250204,3.48,163.1,163.09,3.35]
[1752292250494,3.48,163.1,163.04,3.78990075]
[1752292250691,3.48,163.1,163.03,3.35]
[1752292250895,3.78990075,163.09,163.03,3.35]
[1752292251099,6.13,163.06,163.03,3.35]
[1752292251398,3.48,163.08,163.03,3.35]
[1752292252100,6.1297,163.07,163.03,9.481]
[1752292252304,3.48,163.06,163.04,3.35]
[1752292253792,3.48,163.06,163.05,3.35]
[1752292265507,3.48,163.06,163.02,3.35]
[1752292265802,3.78990075,163.05,163.0,3.35]
[1752292266002,6.1309,163.04,163.0,3.35]
[1752292266205,3.48,163.03,163.0,3.35]
[1752292266599,3.48,163.03,163.0,9.4819]
[1752292266798,3.78990075,163.05,162.98,3.35]
[1752292267001,3.48,163.04,162.98,3.35]
[1752292268113,9.91930075,163.08,163.03,6.131]
[1752292268309,3.48,163.05,163.04,3.35]
[1752292269612,3.48,163.05,163.02,6.1313]
[1752292269811,3.48,163.05,163.03,3.35]
[1752292270913,3.48,163.05,163.04,3.35]
[1752292275009,3.48,163.05,163.04,9.4807]
[1752292275521,3.48,163.05,163.04,3.35]
[1752292275712,3.48,163.05,162.93,6.84778436]
[1752292275913,3.48,163.05,163.02,6.1311]
[1752292276114,3.35,163.04,163.03,3.31]
[1752292277218,3.35,163.04,163.03,9.441]
[1752292278614,3.35,163.04,163.03,3.31]
[1752292282716,3.35,163.04,163.03,9.441]
[1752292287124,3.35,163.04,163.03,3.31]
[1752292288225,3.35,163.04,163.03,9.441]
[1752292291924,3.35,163.08,162.94,17.09729991]
[1752292292123,3.35,163.08,163.01,3.31]
[1752292292320,7.14030271,163.08,163.01,3.31]
[1752292292524,3.35,163.07,163.04,9.4406]
[1752292294229,3.35,163.07,163.05,6.1303]
[1752292294929,3.35,163.07,163.06,6.1299]
[1752292295130,3.35,163.07,163.06,9.4399]
[1752292295324,3.35,163.07,163.06,3.31]
[1752292300833,3.35,163.07,163.05,9.4401]
[1752292301834,3.35,163.07,163.05,6.1301]
[1752292302034,3.35,163.07,163.06,3.31]
[1752292304935,3.35,163.07,163.05,9.6101]
[1752292305838,3.35,163.07,163.06,3.48]
[1752292308738,3.35,163.07,163.06,9.6099]
[1752292310147,3.35,163.07,163.06,3.48]
[1752292314044,5.77620605,163.07,163.04,6.1305]
[1752292314242,2.42620605,163.07,163.04,9.6105]
[1752292314445,3.43,163.06,163.04,9.6105]
[1752292314741,3.43,163.06,163.05,3.48]
[1752292315150,3.43,163.06,163.0,2.42620605]
[1752292315340,3.43,163.04,163.01,3.48]
[1752292316744,2.42620605,163.05,163.02,3.48]
[1752292317043,3.43,163.03,163.02,3.48]
[1752292318149,3.43,163.03,163.02,9.6114]
[1752292323045,3.43,163.03,163.02,3.48]
[1752292323247,3.43,163.03,163.0,3.48]
[1752292324149,3.43,163.03,163.0,9.6119]
[1752292324747,3.43,163.03,163.0,6.1319]
[1752292325350,3.43,163.03,163.0,3.48]
[1752292326651,3.43,163.03,163.0,9.6119]
[1752292326846,3.43,163.03,163.0,6.1319]
[1752292327051,3.43,163.03,163.01,3.48]
[1752292327851,3.43,163.03,163.01,9.6115]
[1752292328053,3.43,163.03,163.02,3.48]
[1752292331454,3.43,163.03,163.02,9.6114]
[1752292332856,2.42620605,163.08,163.02,3.48]
[1752292333057,3.43,163.07,163.04,3.48]
[1752292333350,3.43,163.07,163.04,9.6103]
[1752292333546,3.43,163.07,163.06,3.48]
[1752292337056,3.43,163.07,163.05,9.5303]
[1752292337454,3.43,163.07,163.06,3.4]
[1752292341559,3.43,163.07,163.04,6.1305]
[1752292341761,2.42620605,163.07,163.05,3.4]
[1752292342055,3.42,163.06,163.05,3.4]
[1752292344767,9.55,163.06,163.03,6.1309]
[1752292344962,3.42,163.04,163.03,3.4]
[1752292345168,2.42620605,163.04,163.01,3.4]
[1752292345365,3.42,163.03,163.01,3.4]
[1752292346768,3.42,163.03,163.02,9.5314]
[1752292347166,3.42,163.03,163.02,3.4]
[1752292353167,3.42,163.04,163.02,11.95750605]
[1752292353362,3.42,163.04,163.03,3.4]
[1752292354267,3.42,163.06,163.03,3.4]
[1752292355372,3.42,163.06,163.04,3.4]
[1752292355570,3.42,163.06,163.05,3.4]
[1752292359975,3.42,163.06,163.04,9.5306]
[1752292360874,3.42,163.06,163.04,6.1306]
[1752292361075,3.42,163.06,163.05,3.4]
[1752292364778,9.5499,163.06,163.03,6.1309]
[1752292364981,3.46,163.05,163.03,9.4009]
[1752292365179,3.46,163.05,163.04,3.27]
[1752292366277,9.5903,163.05,163.04,3.27]
[1752292366478,6.1303,163.05,163.03,3.27]
[1752292366683,3.46,163.04,163.03,3.27]
[1752292367277,3.46,163.04,163.03,9.401]
[1752292367478,3.46,163.05,163.03,9.401]
[1752292367680,3.46,163.05,163.04,3.27]
[1752292370689,9.5903,163.05,163.04,3.27]
[1752292371188,3.46,163.05,163.04,3.27]
[1752292372487,12.01723084,163.05,163.02,3.27]
[1752292372689,3.46,163.04,163.02,3.27]
[1752292372981,2.42663084,163.03,163.01,3.27]
[1752292373181,3.46,163.02,163.01,3.27]
[1752292374985,3.46,163.02,163.0,3.27]
[1752292375177,2.42781897,163.01,162.98,3.27]
[1752292375391,3.46,163.0,162.98,3.27]
[1752292376489,3.46,163.0,162.91,6.87832763]
[1752292376790,3.46,163.0,162.98,3.27]
[1752292377496,3.46,163.0,162.99,3.27]
[1752292377887,3.46,163.01,163.0,3.27]
[1752292380088,3.46,163.01,162.99,3.27]
[1752292381192,3.46,163.01,162.99,9.4025]
[1752292382888,3.46,163.01,162.99,6.1325]
[1752292383297,3.46,163.01,162.98,6.1328]
[1752292383593,3.46,163.01,162.97,3.27]
[1752292383993,3.46,163.01,162.99,3.27]
[1752292384791,3.46,163.01,162.99,9.4025]
[1752292386996,18.4,163.02,162.91,6.87832763]
[1752292387197,5.88930501,163.0,162.95,3.27]
[1752292387396,3.46,162.99,162.95,3.27]
[1752292388097,3.46,162.99,162.96,6.1336]
[1752292388390,3.46,162.99,162.97,3.27]
[1752292389492,187.76021023,163.01,162.97,6.1332]
[1752292389687,3.46,162.98,162.97,6.1332]
[1752292389898,3.46,162.98,162.96,2.42841023]
[1752292390196,3.46,162.98,162.97,3.27]
[1752292393495,3.46,162.99,162.95,2.42850389]
[1752292393695,3.46,163.0,162.98,3.27]
[1752292394894,3.35,162.99,162.98,3.27]
[1752292399807,3.35,162.99,162.98,9.4029]
[1752292407809,3.35,163.0,162.99,6.1325]
[1752292408011,3.35,163.0,162.96,2.42850389]
[1752292408413,3.35,163.0,162.99,3.38]
[1752292409416,3.35,163.0,162.98,3.38]
[1752292410619,3.35,163.0,162.99,3.38]
[1752292416728,3.35,163.0,162.99,9.5125]
[1752292421626,3.35,163.0,162.99,3.38]
[1752292424528,3.35,163.0,162.99,9.5125]
[1752292427631,182.81,163.01,163.0,3.36]
[1752292435437,3.61,163.0,162.96,3.36]
[1752292435734,3.61,162.99,162.96,3.36]
[1752292436134,3.61,162.99,162.96,6.1335]
[1752292436337,3.61,162.99,162.97,3.36]
[1752292437235,2.42830648,162.98,162.96,3.36]
[1752292437436,3.61,162.97,162.96,3.36]
[1752292438228,3.61,162.97,162.96,6.1337]
[1752292438434,3.61,162.97,162.96,9.4937]
[1752292438733,2.42830648,162.99,162.97,6.1332]
[1752292438939,178.98,163.01,162.98,3.36]
[1752292439439,3.61,163.0,162.99,3.36]
[1752292450838,6.03830648,163.0,162.96,6.1336]
[1752292451044,3.61,162.99,162.97,3.36]
[1752292452247,9.7427,162.99,162.97,3.36]
[1752292452549,3.61,162.98,162.96,3.36]
[1752292453040,3.61,162.98,162.97,3.36]
[1752292456743,2.42830648,163.01,162.98,3.57]
[1752292456951,3.26,163.0,162.98,3.57]
[1752292457446,3.26,163.0,162.98,5.99830648]
[1752292458145,3.26,163.0,162.99,3.57]
[1752292460844,3.26,163.0,162.99,9.7025]
[1752292466656,3.26,163.0,162.99,3.57]
[1752292467749,3.26,163.03,163.0,3.57]
[1752292467963,3.26,163.03,163.02,2.42830648]
[1752292468153,3.26,163.03,163.02,5.99830648]
[1752292469257,3.26,163.03,163.02,12.12970648]
[1752292471360,184.95,163.06,163.02,12.12970648]
[1752292471660,3.26,163.04,163.03,3.57]
[1752292472763,3.26,163.04,162.96,6.87832763]
[1752292472960,3.26,163.03,163.0,3.57]
[1752292473761,3.26,163.03,163.01,3.57]
[1752292475257,3.26,163.02,163.0,3.57]
[1752292476759,3.26,163.03,163.01,3.57]
[1752292477661,182.02,163.04,163.02,3.57]
[1752292478257,182.02,163.04,163.02,5.99830648]
[1752292478454,178.76,163.04,163.02,2.42830648]
[1752292478654,178.76,163.04,163.03,3.57]
[1752292478862,3.26,163.05,163.03,3.57]
[1752292479563,3.26,163.06,163.03,3.57]
[1752292480059,3.26,163.06,163.04,3.57]
[1752292480469,3.26,163.05,163.04,3.57]
[1752292480962,3.26,163.06,163.04,3.57]
[1752292481364,178.74,163.07,163.04,3.57]
[1752292481562,3.26,163.05,163.04,3.57]
[1752292481864,178.74,163.07,163.04,3.57]
[1752292481865,182.0,163.07,163.04,12.12900648]
[1752292482063,182.0,163.07,163.04,8.55900648]
[1752292482263,182.0,163.07,163.05,3.57]
[1752292482964,182.0,163.07,163.05,9.7003]
[1752292483261,182.0,163.07,163.06,5.99830648]
[1752292483262,178.74,163.07,163.06,5.99830648]
[1752292484258,3.26,163.08,163.07,3.57]
[1752292485565,3.33,163.09,163.07,3.57]
[1752292490471,3.33,163.1,163.07,3.57]
[1752292490770,3.33,163.1,163.09,3.29]
[1752292493268,178.62,163.11,163.09,9.4188]
[1752292493468,181.95,163.11,163.1,3.29]
[1752292497272,3.33,163.17,163.11,3.29]
[1752292497473,3.33,163.16,163.13,3.29]
[1752292497872,3.33,163.16,163.14,3.29]
[1752292498172,3.33,163.16,163.15,3.29]
[1752292500070,3.33,163.16,163.14,3.29]
[1752292500269,3.33,163.15,163.14,3.29]
[1752292500471,8.55510648,163.15,163.13,3.29]
[1752292500770,3.33,163.14,163.11,3.29]
[1752292501175,3.33,163.14,163.12,3.29]
[1752292501768,3.33,163.14,163.1,2.42830648]
[1752292501769,3.33,163.14,163.1,3.29]
[1752292501967,3.33,163.14,163.11,3.29]
[1752292502170,9.4569,163.14,163.11,3.29]
[1752292502369,3.33,163.13,163.11,3.29]
[1752292502568,180.92830648,163.13,163.09,3.29]
[1752292502767,9.4578,163.12,163.09,3.29]
[1752292503067,3.33,163.11,163.09,3.29]
[1752292505274,3.33,163.17,163.1,3.29]
[1752292505480,178.48,163.17,163.11,3.78936304]
[1752292505679,3.33,163.16,163.12,3.29]
[1752292505976,3.33,163.16,163.12,9.4174]
[1752292506174,3.33,163.16,163.13,3.29]
[1752292506781,3.33,163.15,163.13,3.29]
[1752292507482,3.33,163.14,163.12,3.29]
[1752292508379,3.33,163.14,163.03,3.29]
[1752292508583,3.33,163.14,163.08,6.1288]
[1752292508884,3.33,163.13,163.09,3.29]
[1752292509084,9.4575,163.13,163.09,3.29]
[1752292509283,3.33,163.12,163.09,9.4187]
[1752292510082,3.33,163.12,163.09,3.29]
[1752292511082,3.33,163.12,163.09,6.1288]
[1752292511382,3.33,163.12,163.1,3.29]
[1752292518383,3.33,163.12,163.09,6.1287]
[1752292518384,6.1277,163.12,163.09,3.42]
[1752292518584,3.38,163.11,163.09,3.42]
[1752292519088,3.38,163.11,163.07,3.78936304]
[1752292519089,3.38,163.1,163.06,3.42]
[1752292519588,3.38,163.1,163.07,6.1295]
[1752292519785,3.38,163.1,163.08,3.42]
[1752292520393,3.38,163.11,163.09,3.42]
[1752292520691,3.38,163.1,163.09,3.42]
[1752292528997,3.38,163.1,163.06,6.1298]
[1752292529295,3.38,163.09,163.07,3.42]
[1752292529792,6.1282,163.11,163.07,6.1295]
[1752292530097,3.38,163.1,163.02,6.87832763]
[1752292530297,3.38,163.1,163.05,3.78936304]
[1752292530496,9.5085,163.1,163.07,3.42]
[1752292530692,3.38,163.09,163.03,3.78936304]
[1752292530997,3.38,163.09,163.05,3.42]
[1752292531198,3.38,163.09,163.05,9.5503]
[1752292531395,3.38,163.09,163.06,3.42]
[1752292531799,3.38,163.09,163.06,6.1299]
[1752292532096,3.38,163.09,163.07,3.42]
[1752292532705,3.38,163.09,163.08,3.42]
[1752292537904,3.38,163.09,163.06,6.1299]
[1752292538105,3.38,163.09,163.05,9.91946304]
[1752292538405,3.38,163.09,163.06,3.42]
[1752292539102,3.38,163.09,163.06,6.1299]
[1752292539304,3.38,163.08,163.04,3.42]
[1752292541210,3.38,163.08,163.06,3.42]
[1752292541809,3.38,163.08,163.05,9.5503]
[1752292542609,3.38,163.08,163.06,3.42]
[1752292543305,3.38,163.08,163.05,6.1303]
[1752292543506,3.38,163.08,163.07,3.42]
[1752292581742,9.5092,163.08,163.07,3.42]
[1752292583748,3.38,163.08,163.07,3.42]
[1752292586948,9.5092,163.08,163.06,3.45]
[1752292587145,3.5,163.07,163.06,3.45]
[1752292590447,6.1289,163.09,163.06,9.5796]
[1752292590650,9.6289,163.09,163.07,3.45]
[1752292590850,6.1289,163.09,163.07,3.45]
[1752292591051,3.5,163.08,163.07,3.45]
[1752292596754,3.5,163.08,163.07,9.5795]
[1752292596958,3.5,163.1,163.08,3.45]
[1752292597457,3.5,163.08,163.03,5.87597117]
[1752292597659,3.5,163.08,163.03,2.42597117]
[1752292597854,3.5,163.08,163.05,6.1301]
[1752292598053,3.5,163.08,163.06,3.45]
[1752292600857,3.5,163.08,163.06,9.5799]
[1752292602861,3.5,163.08,163.06,6.1299]
[1752292603158,3.5,163.08,163.07,3.45]
[1752292607463,3.5,163.08,163.05,6.1302]
[1752292607762,3.5,163.08,163.05,9.6902]
[1752292607964,3.5,163.08,163.06,3.56]
[1752292608259,3.33,163.07,163.04,3.56]
[1752292609158,3.33,163.07,163.04,9.6903]
[1752292609359,3.33,163.07,163.04,6.1303]
[1752292609560,3.33,163.07,163.05,3.56]
[1752292611164,3.33,163.07,163.05,6.1303]
[1752292611364,3.33,163.07,163.06,3.56]
[1752292615569,3.33,163.07,163.06,9.6899]
[1752292621979,3.33,163.09,163.08,3.56]
[1752292622674,3.33,163.1,163.09,3.56]
[1752292623874,181.19,163.11,163.1,3.56]
[1752292624077,181.19,163.11,163.1,5.98478744]
[1752292624377,181.19,163.11,163.1,12.11318744]
[1752292628184,177.86,163.11,163.1,12.11318744]
[1752292628583,177.86,163.11,163.1,5.98478744]
[1752292628886,181.19,163.11,163.1,5.98478744]
[1752292630177,181.19,163.11,163.1,3.56]
[1752292631277,6.1284,163.1,163.09,3.56]
[1752292631478,6.1284,163.1,163.02,6.87832763]
[1752292631688,3.33,163.09,163.08,3.56]
[1752292637889,3.42,163.09,163.07,3.38]
[1752292639088,3.42,163.07,163.06,3.38]
[1752292639282,181.14,163.07,163.06,3.38]
[1752292639479,181.14,163.07,163.05,9.5102]
[1752292639687,3.42,163.06,163.05,9.5102]
[1752292640689,3.42,163.06,163.05,3.38]
[1752292643490,5.84478744,163.06,162.99,3.38]
[1752292643681,3.42,163.05,163.02,3.38]
[1752292644788,9.5504,163.05,163.02,3.38]
[1752292645084,9.5504,163.05,162.94,10.31749145]
[1752292645085,3.42,163.06,163.03,2.42478744]
[1752292645284,177.72,163.07,163.05,2.42478744]
[1752292645481,181.14,163.07,163.05,5.80478744]
[1752292645682,181.14,163.07,163.06,3.38]
[1752292649894,177.72,163.07,163.06,9.5099]
[1752292652195,3.42,163.08,163.06,6.1299]
[1752292652397,3.42,163.08,163.07,3.38]
[1752292660701,181.1,163.1,163.07,5.80478744]
[1752292660902,177.68,163.1,163.09,5.80478744]
[1752292661604,181.1,163.1,163.09,5.80478744]
[1752292661792,177.68,163.1,163.09,5.80478744]
[1752292662301,177.68,163.1,163.09,11.93358744]
[1752292662502,3.42,163.11,163.09,11.93358744]
[1752292662503,3.42,163.11,163.1,3.38]
[1752292667005,3.48,163.12,163.11,3.61]
[1752292675607,177.62,163.13,163.11,3.61]
[1752292675812,177.66082927,163.13,163.11,6.03478744]
[1752292676012,181.14082927,163.13,163.12,3.61]
[1752292676212,177.66082927,163.13,163.12,3.61]
[1752292676513,0.04082927,163.13,163.12,3.61]
[1752292676708,3.52082927,163.13,163.12,3.61]
[1752292680019,0.04082927,163.13,163.12,9.7377]
[1752292680217,3.52082927,163.13,163.12,9.7377]
[1752292680416,3.52082927,163.13,163.12,3.61]
[1752292680617,0.04082927,163.13,163.12,3.61]
[1752292681117,3.52082927,163.13,163.12,3.61]
[1752292683123,3.52082927,163.13,163.12,9.7377]
[1752292683316,0.04082927,163.13,163.12,9.7377]
[1752292685928,1.55826277,163.36,163.19,18.4]
[1752292686114,3.48,163.46,163.35,2.42206075]
[1752292686315,3.48,163.46,163.38,2.42206075]
[1752292686521,3.48,163.44,163.31,5.10078936]
[1752292686823,3.48,163.44,163.38,2.42206075]
[1752292687216,3.48,163.44,163.39,9.07686903]
[1752292687520,3.48,163.44,163.4,6.65480828]
[1752292687727,3.48,163.44,163.41,6.65480828]
[1752292688022,3.48,163.44,163.43,2.42206075]
[1752292688229,3.48,163.44,163.43,9.07686903]
[1752292688425,180.7,163.47,163.44,3.06]
[1752292688629,180.7,163.47,163.46,2.42206075]
[1752292688823,180.7,163.47,163.46,13.95000036]
[1752292689325,180.7,163.47,163.46,16.57885201]
[1752292690420,184.18,163.47,163.46,16.57885201]
[1752292692029,190.2945,163.47,163.41,3.77074474]
[1752292692230,3.48,163.46,163.42,3.82322234]
[1752292692426,3.48,163.45,163.42,3.61]
[1752292692628,3.48,163.45,163.43,3.61]
[1752292692928,3.48,163.44,163.41,7.38074474]
[1752292694333,3.48,163.44,163.42,3.61]
[1752292695032,3.48,163.44,163.41,3.77074474]
[1752292695236,180.42,163.43,163.4,7.15074474]
[1752292695535,3.42,163.42,163.4,7.15074474]
[1752292695732,3.42,163.41,163.4,7.15074474]
[1752292696537,180.42,163.43,163.41,0.18361539]
[1752292696538,180.26,163.43,163.41,0.18361539]
[1752292696739,183.68,163.43,163.42,3.38]
[1752292698041,3.42,163.43,163.42,3.38]
[1752292698238,3.42,163.44,163.43,3.38]
[1752292698441,3.42,163.44,163.43,7.15313203]
[1752292700442,9.5357,163.44,163.43,7.15313203]
[1752292700945,3.42,163.44,163.43,7.15313203]
[1752292701543,9.5357,163.44,163.43,7.15313203]
[1752292702037,180.14,163.45,163.43,7.15313203]
[1752292702245,180.14,163.45,163.44,3.38]
[1752292703444,9.5353,163.46,163.44,3.38]
[1752292703840,6.1153,163.46,163.43,3.77313203]
[1752292704045,3.42,163.45,163.44,3.51463154]
[1752292704444,179.92,163.47,163.45,3.38]
[1752292704640,3.42,163.46,163.44,3.38]
[1752292704841,3.42,163.46,163.45,3.51416184]
[1752292705042,9.5349,163.46,163.45,3.51416184]
[1752292706044,9.5349,163.46,163.45,6.89416184]
[1752292707749,6.1149,163.46,163.45,6.89416184]
[1752292707951,3.42,163.46,163.38,3.38]
[1752292708148,3.77220134,163.45,163.38,3.38]
[1752292708341,3.42,163.43,163.38,3.38]
[1752292708540,6.1175,163.39,163.38,3.38]
[1752292708750,3.42,163.39,163.36,3.38]
[1752292708942,3.42,163.39,163.37,3.38]
[1752292709152,3.42,163.38,163.33,3.77220134]
[1752292709445,3.42,163.38,163.36,3.38]
[1752292709645,3.42,163.37,163.36,3.38]
[1752292714550,9.538,163.38,163.36,3.38]
[1752292714742,9.538,163.38,163.37,3.38]
[1752292717756,6.1176,163.39,163.37,3.38]
[1752292718053,9.5376,163.39,163.37,3.38]
[1752292718851,3.42,163.39,163.34,3.38]
[1752292719051,3.42,163.39,163.35,6.26218061]
[1752292719256,3.42,163.39,163.37,3.38]
[1752292719456,0.04101951,163.39,163.37,3.38]
[1752292720057,0.04101951,163.39,163.38,6.91883647]
[1752292721252,0.04101951,163.39,163.38,13.19878675]
[1752292721456,0.04101951,163.39,163.38,17.89182727]
[1752292722661,0.04101951,163.39,163.38,24.00972727]
[1752292723257,182.98,163.41,163.39,3.38]
[1752292723461,179.56,163.41,163.4,17.89182727]
[1752292723655,182.98,163.41,163.4,17.89182727]
[1752292724160,189.0968,163.41,163.4,17.89182727]
[1752292725162,182.98,163.41,163.4,17.89182727]
[1752292726956,182.98,163.41,163.4,13.19878675]
[1752292727363,180.6857537,163.41,163.4,13.19878675]
[1752292728055,180.7657537,163.41,163.4,13.19878675]
[1752292728658,177.2657537,163.41,163.4,19.31598675]
[1752292729359,174.20696222,163.41,163.4,19.31598675]
[1752292729557,3.5,163.42,163.41,3.47]
[1752292729860,3.5,163.42,163.41,13.28878675]
[1752292732058,3.5,163.42,163.41,17.93494355]
[1752292732360,3.5,163.42,163.41,24.78807377]
[1752292732558,3.5,163.42,163.41,17.93494355]
[1752292732860,3.5,163.42,163.41,14.50211534]
[1752292733562,3.5,163.43,163.41,20.61891534]
[1752292733765,3.5,163.43,163.42,21.35507676]
[1752292734360,3.5,163.43,163.42,14.50211534]
[1752292735355,6.1159,163.44,163.42,14.50211534]
[1752292735561,3.5,163.43,163.41,12.96956142]
[1752292735758,3.5,163.43,163.42,11.03374957]
[1752292736063,3.5,163.43,163.42,14.50375019]
[1752292737256,3.5,163.43,163.42,14.50434599]